fUSD/lending_fUSD_20260610
["ID","MTS","AMOUNT","RATE_DAILY","PERIOD"]
[424723629,1781089841000,-1263.1969102,0.00014999,2]
[424723630,1781089841000,-1263.1969102,0.00014999,2]
[424723632,1781089841000,-1263.1969102,0.00014999,2]
[424723633,1781089841000,-1263.1969102,0.00014999,2]
[424723622,1781089841000,-1263.1969102,0.00014999,2]
[424723675,1781089841000,-300.0,0.00018711,2]
[424723718,1781089841000,-2157.14243826,0.0001926,2]
[424723665,1781089841000,-166.08642978,0.00018,2]
[424723695,1781089841000,-151.0,0.00018712,2]
[424723694,1781089841000,-1377.42282658,0.00018712,2]
[424723701,1781089841000,-1536.04360648,0.00018712,2]
[424723711,1781089841000,-1842.0326633,0.00018712,2]
[424723702,1781089841000,-151.0,0.00018712,2]
[424723700,1781089841000,-151.0,0.00018712,2]
[424723704,1781089841000,-151.0,0.00018712,2]
[424723708,1781089841000,-151.0,0.00018712,2]
[424723705,1781089841000,-1651.81367706,0.00018712,2]
[424723707,1781089841000,-1712.93078311,0.00018712,2]
[424723706,1781089841000,-151.0,0.00018712,2]
[424723710,1781089841000,-151.0,0.00018712,2]
[424723703,1781089841000,-1592.87721992,0.00018712,2]
[424723713,1781089841000,-1910.18787185,0.00018712,2]
[424723712,1781089841000,-151.0,0.00018712,2]
[424723714,1781089841000,-1980.8648231,0.00018712,2]
[424723715,1781089841000,-151.0,0.00018712,2]
[424723716,1781089841000,-2054.15682156,0.00018712,2]
[424723719,1781089841000,-2557.40981201,0.000195,2]
[424723720,1781089841000,-2236.95670847,0.00019808,2]
[424723717,1781089841000,-151.0,0.00018712,2]
[424723721,1781089841000,-652.2631735,0.0002,2]
[424723722,1781089841000,-248.0,0.0002,2]
[424723723,1781089841000,-266.0,0.0002,2]
[424723663,1781089841000,-1227.0,0.00017423,2]
[424723696,1781089841000,-2080.17592889,0.00018712,2]
[424723693,1781089841000,-151.0,0.00018712,2]
[424723709,1781089841000,-1776.30922209,0.00018712,2]
[424723691,1781089841000,-151.0,0.00018712,2]
[424723666,1781089841000,-350.0,0.00018,2]
[424723692,1781089841000,-1328.27659266,0.00018712,2]
[424723667,1781089841000,-2005.9555727,0.00018164,2]
[424723671,1781089841000,-165.822593,0.00018338,2]
[424723670,1781089841000,-165.34011,0.00018338,2]
[424723668,1781089841000,-166.08642978,0.000182,2]
[424723672,1781089841000,-166.08642978,0.000184,2]
[424723673,1781089841000,-214.3,0.0001841,2]
[424723676,1781089841000,-300.0,0.00018711,2]
[424723678,1781089841000,-151.0,0.00018712,2]
[424723681,1781089841000,-1107.63007,0.00018712,2]
[424723686,1781089841000,-151.0,0.00018712,2]
[424723677,1781089841000,-1030.0,0.00018712,2]
[424723669,1781089841000,-196.2513,0.00018338,2]
[424723689,1781089841000,-1280.88388877,0.00018712,2]
[424723699,1781089841000,-1481.2378076,0.00018712,2]
[424723684,1781089841000,-151.0,0.00018712,2]
[424723690,1781089841000,-151.0,0.00018712,2]
[424723697,1781089841000,-1428.38747117,0.00018712,2]
[424723698,1781089841000,-151.0,0.00018712,2]
[424723679,1781089841000,-1068.11,0.00018712,2]
[424723682,1781089841000,-151.0,0.00018712,2]
[424723680,1781089841000,-151.0,0.00018712,2]
[424723687,1781089841000,-1235.18214925,0.00018712,2]
[424723688,1781089841000,-151.0,0.00018712,2]
[424723685,1781089841000,-1191.11104074,0.00018712,2]
[424723683,1781089841000,-1148.61238259,0.00018712,2]
[424723767,1781089842000,-225.0,0.00021,2]
[424723760,1781089842000,-250.0,0.00021,2]
[424723763,1781089842000,-293.0,0.00021,2]
[424723764,1781089842000,-515.0,0.00021,2]
[424723762,1781089842000,-731.0,0.00021,2]
[424723752,1781089842000,-248.0,0.00021,2]
[424723757,1781089842000,-256.0,0.00021,2]
[424723768,1781089842000,-409.0,0.00021,2]
[424723758,1781089842000,-189.0,0.00021,2]
[424723750,1781089842000,-652.2631735,0.000208,2]
[424723761,1781089842000,-218.0,0.00021,2]
[424723759,1781089842000,-702.0,0.00021,2]
[424723766,1781089842000,-228.0,0.00021,2]
[424723778,1781089842000,-735.0,0.00022,2]
[424723770,1781089842000,-2494.55939288,0.00021452,2]
[424723769,1781089842000,-166.66,0.0002102,2]
[424723780,1781089842000,-256.0,0.00022,2]
[424723781,1781089842000,-189.0,0.00022,2]
[424723775,1781089842000,-266.0,0.00022,2]
[424723773,1781089842000,-166.66,0.00021905,2]
[424723771,1781089842000,-166.66,0.00021462,2]
[424723772,1781089842000,-2505.0,0.00021536,5]
[424723776,1781089842000,-450.0,0.00022,2]
[424723779,1781089842000,-811.0,0.00022,2]
[424723774,1781089842000,-248.0,0.00022,2]
[424723749,1781089842000,-200.0,0.00020791,2]
[424723765,1781089842000,-240.0,0.00021,2]
[424723748,1781089842000,-652.2631735,0.000206,2]
[424723726,1781089842000,-735.0,0.0002,2]
[424723745,1781089842000,-382.0,0.00020423,2]
[424723782,1781089842000,-702.0,0.00022,2]
[424723724,1781089842000,-400.0,0.0002,2]
[424723725,1781089842000,-220.0,0.0002,2]
[424723729,1781089842000,-189.0,0.0002,2]
[424723731,1781089842000,-250.0,0.0002,2]
[424723727,1781089842000,-811.0,0.0002,2]
[424723728,1781089842000,-256.0,0.0002,2]
[424723730,1781089842000,-702.0,0.0002,2]
[424723732,1781089842000,-218.0,0.0002,2]
[424723733,1781089842000,-731.0,0.0002,2]
[424723737,1781089842000,-6075.0,0.00020086,2]
[424723734,1781089842000,-293.0,0.0002,2]
[424723735,1781089842000,-515.0,0.0002,2]
[424723742,1781089842000,-652.2631735,0.000204,2]
[424723743,1781089842000,-279.0449877,0.00020409,2]
[424723740,1781089842000,-2319.72410669,0.00020356,2]
[424723738,1781089842000,-933.0,0.00020086,2]
[424723739,1781089842000,-652.2631735,0.000202,2]
[424723736,1781089842000,-240.0,0.0002,2]
[424723741,1781089842000,-214.3,0.00020381,2]
[424723753,1781089842000,-266.0,0.00021,2]
[424723754,1781089842000,-220.0,0.00021,2]
[424723744,1781089842000,-1358.0,0.00020423,2]
[424723755,1781089842000,-735.0,0.00021,2]
[424723756,1781089842000,-811.0,0.00021,2]
[424723751,1781089842000,-2405.55389863,0.00020904,2]
[424723746,1781089842000,-1274.0,0.00020423,2]
[424723747,1781089842000,-1227.0,0.00020423,2]
[424723783,1781089842000,-250.0,0.00022,2]
[424723777,1781089842000,-220.0,0.00022,2]
[424723787,1781089842000,-515.0,0.00022,2]
[424723814,1781089842000,-6075.0,0.00023086,2]
[424723815,1781089842000,-933.0,0.00023086,2]
[424723830,1781089842000,-248.0,0.00024,2]
[424723819,1781089842000,-1358.0,0.00023423,2]
[424723820,1781089842000,-382.0,0.00023423,2]
[424723822,1781089842000,-1227.0,0.00023423,2]
[424723828,1781089842000,-970.53,0.00023886,30]
[424723823,1781089842000,-1000.0,0.000236,2]
[424723821,1781089842000,-1274.0,0.00023423,2]
[424723825,1781089842000,-309.0,0.000236,2]
[424723824,1781089842000,-316.0,0.000236,2]
[424723827,1781089842000,-528.38,0.00023886,7]
[424723826,1781089842000,-2884.75459676,0.00023644,2]
[424723829,1781089842000,-200.0,0.00023935,2]
[424723832,1781089842000,-500.0,0.00024,2]
[424723842,1781089842000,-293.0,0.00024,2]
[424723840,1781089842000,-218.0,0.00024,2]
[424723831,1781089842000,-266.0,0.00024,2]
[424723838,1781089842000,-702.0,0.00024,2]
[424723835,1781089842000,-811.0,0.00024,2]
[424723839,1781089842000,-250.0,0.00024,2]
[424723836,1781089842000,-256.0,0.00024,2]
[424723833,1781089842000,-220.0,0.00024,2]
[424723834,1781089842000,-735.0,0.00024,2]
[424723837,1781089842000,-189.0,0.00024,2]
[424723841,1781089842000,-731.0,0.00024,2]
[424723784,1781089842000,-218.0,0.00022,2]
[424723818,1781089842000,-166.66,0.00023232,30]
[424723812,1781089842000,-515.0,0.00023,2]
[424723843,1781089842000,-515.0,0.00024,2]
[424723817,1781089842000,-200.0,0.00023166,2]
[424723792,1781089842000,-1000.0,0.00022259,2]
[424723788,1781089842000,-240.0,0.00022,2]
[424723785,1781089842000,-731.0,0.00022,2]
[424723786,1781089842000,-293.0,0.00022,2]
[424723791,1781089842000,-200.0,0.00022126,2]
[424723793,1781089842000,-166.66,0.00022347,30]
[424723794,1781089842000,-214.3,0.00022353,2]
[424723816,1781089842000,-2781.82699784,0.00023096,2]
[424723790,1781089842000,-3155.18,0.00022126,2]
[424723796,1781089842000,-2186.52,0.00022466,2]
[424723795,1781089842000,-525.23,0.00022466,2]
[424723805,1781089842000,-256.0,0.00023,2]
[424723797,1781089842000,-2682.57183977,0.00022548,2]
[424723789,1781089842000,-2586.85809042,0.00022,2]
[424723799,1781089842000,-166.66,0.0002279,30]
[424723810,1781089842000,-731.0,0.00023,2]
[424723800,1781089842000,-248.0,0.00023,2]
[424723809,1781089842000,-218.0,0.00023,2]
[424723811,1781089842000,-293.0,0.00023,2]
[424723808,1781089842000,-250.0,0.00023,2]
[424723803,1781089842000,-735.0,0.00023,2]
[424723813,1781089842000,-240.0,0.00023,2]
[424723804,1781089842000,-811.0,0.00023,2]
[424723801,1781089842000,-266.0,0.00023,2]
[424723806,1781089842000,-189.0,0.00023,2]
[424723807,1781089842000,-702.0,0.00023,2]
[424723798,1781089842000,-5000.0,0.00022584,2]
[424723802,1781089842000,-220.0,0.00023,2]
[424723884,1781089843000,-613.8,0.00026125,7]
[424723893,1781089843000,-1177.0,0.00026698,10]
[424723889,1781089843000,-382.0,0.00026423,2]
[424723890,1781089843000,-1274.0,0.00026423,2]
[424723885,1781089843000,-194.81124461,0.00026215,3]
[424723875,1781089843000,-299.0,0.00025,2]
[424723888,1781089843000,-1358.0,0.00026423,2]
[424723880,1781089843000,-550.0,0.00026,2]
[424723878,1781089843000,-200.0,0.00025473,2]
[424723877,1781089843000,-243.52135884,0.00025,2]
[424723886,1781089843000,-200.0,0.00026243,2]
[424723896,1781089843000,-647.0,0.00027137,2]
[424723907,1781089843000,-500.0,0.00027397,2]
[424723891,1781089843000,-1227.0,0.00026423,2]
[424723887,1781089843000,-214.3,0.00026296,2]
[424723892,1781089843000,-500.0,0.0002663,2]
[424723894,1781089843000,-172.4056223,0.00026729,3]
[424723898,1781089843000,-217.41178917,0.000273,30]
[424723909,1781089843000,-500.0,0.00027397,2]
[424723908,1781089843000,-500.0,0.00027397,2]
[424723910,1781089843000,-500.0,0.00027397,2]
[424723911,1781089843000,-500.0,0.00027397,2]
[424723897,1781089843000,-225.8,0.00027153,7]
[424723906,1781089843000,-500.0,0.00027397,2]
[424723876,1781089843000,-532.68090141,0.00025,2]
[424723895,1781089843000,-200.0,0.00027012,2]
[424723879,1781089843000,-217.21686694,0.00025701,3]
[424723861,1781089843000,-266.0,0.00025,2]
[424723874,1781089843000,-743.0,0.00025,2]
[424723905,1781089843000,-500.0,0.00027397,2]
[424723844,1781089843000,-240.0,0.00024,2]
[424723850,1781089843000,-222.0,0.00024432,2]
[424723847,1781089843000,-2991.49051684,0.00024192,2]
[424723848,1781089843000,-214.3,0.00024324,2]
[424723845,1781089843000,-279.0449877,0.00024031,2]
[424723846,1781089843000,-459.57,0.0002411,2]
[424723849,1781089843000,-500.0,0.00024411,2]
[424723852,1781089843000,-512.53,0.00024603,7]
[424723853,1781089843000,-1000.0,0.00024658,2]
[424723851,1781089843000,-150.0,0.00024432,2]
[424723856,1781089843000,-200.0,0.00024704,2]
[424723872,1781089843000,-266.0,0.00025,2]
[424723854,1781089843000,-170.09,0.00024658,2]
[424723858,1781089843000,-613.8,0.00024892,7]
[424723864,1781089843000,-747.0,0.00025,2]
[424723862,1781089843000,-228.0,0.00025,2]
[424723860,1781089843000,-248.0,0.00025,2]
[424723866,1781089843000,-823.0,0.00025,2]
[424723869,1781089843000,-264.0,0.00025,2]
[424723870,1781089843000,-193.0,0.00025,2]
[424723871,1781089843000,-718.0,0.00025,2]
[424723873,1781089843000,-234.0,0.00025,2]
[424723883,1781089843000,-933.0,0.00026086,2]
[424723881,1781089843000,-328.27,0.00026027,7]
[424723882,1781089843000,-6075.0,0.00026086,2]
[424723859,1781089843000,-225.8,0.00024892,7]
[424723899,1781089843000,-613.8,0.00027359,7]
[424723900,1781089843000,-300.0,0.00027396,10]
[424723903,1781089843000,-300.0,0.00027396,10]
[424723943,1781089843000,-182.89138671,0.00027471,2]
[424723942,1781089843000,-157.61424124,0.00027471,2]
[424723939,1781089843000,-192.09382294,0.00027468,2]
[424723944,1781089843000,-202.45029977,0.00027471,2]
[424723947,1781089843000,-151.4848965,0.00027501,2]
[424723946,1781089843000,-500.0,0.000275,7]
[424723948,1781089843000,-171.56171484,0.00027501,2]
[424723950,1781089843000,-242.50470747,0.00027501,2]
[424723949,1781089843000,-210.01517749,0.00027501,2]
[424723952,1781089843000,-274.37089876,0.00027501,2]
[424723951,1781089843000,-182.10237434,0.00027501,2]
[424723953,1781089843000,-180.82186542,0.00027501,2]
[424723955,1781089843000,-279.0449877,0.00027654,2]
[424723956,1781089843000,-647.0,0.00027671,2]
[424723958,1781089843000,-14993.3371492,0.00027831,2]
[424723957,1781089843000,-200.0,0.00027781,2]
[424723961,1781089843000,-647.0,0.00028205,3]
[424723962,1781089843000,-214.3,0.00028267,2]
[424723967,1781089843000,-2282.4,0.00028631,30]
[424723965,1781089843000,-151.0,0.00028629,7]
[424723964,1781089843000,-613.8,0.00028592,7]
[424723963,1781089843000,-200.0,0.0002855,2]
[424723966,1781089843000,-2281.34,0.00028631,30]
[424723959,1781089843000,-600.0,0.00028,2]
[424723960,1781089843000,-284.95203121,0.00028,10]
[424723941,1781089843000,-164.22939103,0.00027471,2]
[424723940,1781089843000,-167.42199386,0.00027468,2]
[424723954,1781089843000,-271.86373795,0.00027501,2]
[424723937,1781089843000,-176.70222361,0.00027468,2]
[424723945,1781089843000,-186.45084936,0.00027471,2]
[424723912,1781089843000,-500.0,0.00027397,2]
[424723913,1781089843000,-500.0,0.00027397,2]
[424723923,1781089843000,-500.0,0.00027397,2]
[424723915,1781089843000,-500.0,0.00027397,2]
[424723917,1781089843000,-500.0,0.00027397,2]
[424723922,1781089843000,-500.0,0.00027397,2]
[424723920,1781089843000,-500.0,0.00027397,2]
[424723916,1781089843000,-500.0,0.00027397,2]
[424723918,1781089843000,-500.0,0.00027397,2]
[424723919,1781089843000,-500.0,0.00027397,2]
[424723921,1781089843000,-500.0,0.00027397,2]
[424723925,1781089843000,-500.0,0.00027397,2]
[424723914,1781089843000,-500.0,0.00027397,2]
[424723935,1781089843000,-176.48813686,0.00027436,2]
[424723933,1781089843000,-21568.05,0.00027397,10]
[424723938,1781089843000,-177.59163791,0.00027468,2]
[424723936,1781089843000,-175.31334957,0.00027468,2]
[424723931,1781089843000,-300.0,0.00027397,2]
[424723930,1781089843000,-1500.0,0.00027397,2]
[424723932,1781089843000,-170.09,0.00027397,2]
[424723927,1781089843000,-500.0,0.00027397,2]
[424723929,1781089843000,-383.36895025,0.00027397,2]
[424723926,1781089843000,-500.0,0.00027397,2]
[424723934,1781089843000,-165.08,0.000274,7]
[424723924,1781089843000,-500.0,0.00027397,2]
[424723928,1781089843000,-500.0,0.00027397,2]
[424724026,1781089844000,-364.20474867,0.00028799,2]
[424724019,1781089844000,-302.969793,0.00028799,2]
[424724037,1781089844000,-1100.81,0.00028799,7]
[424724031,1781089844000,-543.72747591,0.00028799,2]
[424724024,1781089844000,-485.00941493,0.00028799,2]
[424723994,1781089844000,-384.18764589,0.00028765,2]
[424724015,1781089844000,-690.58,0.0002879,30]
[424724000,1781089844000,-315.22848247,0.00028768,2]
[424724002,1781089844000,-365.78277342,0.00028768,2]
[424724017,1781089844000,-2281.34,0.00028798,7]
[424724020,1781089844000,-343.12342968,0.00028799,2]
[424724018,1781089844000,-2282.4,0.00028798,7]
[424724027,1781089844000,-548.74179751,0.00028799,2]
[424724043,1781089844000,-691.87,0.00028821,2]
[424724029,1781089844000,-361.64373084,0.00028799,2]
[424724033,1781089844000,-1098.29,0.00028799,7]
[424724035,1781089844000,-684.7,0.00028799,7]
[424724039,1781089844000,-686.18,0.00028799,7]
[424724041,1781089844000,-165.08,0.000288,7]
[424724045,1781089844000,-690.58,0.00028821,2]
[424724047,1781089844000,-691.87,0.00028853,7]
[424724049,1781089844000,-690.58,0.00028853,7]
[424724051,1781089844000,-691.87,0.00028885,30]
[424724053,1781089844000,-690.58,0.00028885,30]
[424724058,1781089844000,-341.0,0.000289,2]
[424724057,1781089844000,-200.0,0.000289,2]
[424724022,1781089844000,-420.03035497,0.00028799,2]
[424724009,1781089844000,-248.51259802,0.00028768,2]
[424723969,1781089844000,-1098.29,0.00028632,30]
[424724013,1781089844000,-691.87,0.0002879,30]
[424724055,1781089844000,-200.0,0.000289,2]
[424723968,1781089844000,-691.87,0.00028632,2]
[424723971,1781089844000,-690.58,0.00028632,2]
[424723970,1781089844000,-684.7,0.00028632,30]
[424723972,1781089844000,-1100.81,0.00028632,30]
[424723978,1781089844000,-691.87,0.00028726,2]
[424723975,1781089844000,-690.58,0.00028663,7]
[424723973,1781089844000,-686.18,0.00028632,30]
[424723974,1781089844000,-691.87,0.00028663,7]
[424723977,1781089844000,-690.58,0.00028695,30]
[424723976,1781089844000,-691.87,0.00028695,30]
[424723979,1781089844000,-690.58,0.00028726,2]
[424723996,1781089844000,-334.84398773,0.00028765,2]
[424723981,1781089844000,-204.19058945,0.00028732,2]
[424723980,1781089844000,-180.37572735,0.00028727,2]
[424723983,1781089844000,-204.8458092,0.00028732,2]
[424723984,1781089844000,-647.0,0.00028739,3]
[424723992,1781089844000,-355.18327581,0.00028765,2]
[424723985,1781089844000,-691.87,0.00028758,7]
[424723986,1781089844000,-690.58,0.00028758,7]
[424723990,1781089844000,-353.40444722,0.00028765,2]
[424723989,1781089844000,-350.62669914,0.00028765,2]
[424724007,1781089844000,-239.77635086,0.00028768,2]
[424724005,1781089844000,-404.90059954,0.00028768,2]
[424723998,1781089844000,-328.45878205,0.00028768,2]
[424724011,1781089844000,-372.90169872,0.00028768,2]
[424723982,1781089844000,-352.97627372,0.00028732,2]
[424724060,1781089844000,-691.87,0.00028916,2]
[424724154,1781089844000,-811.0,0.0002923,30]
[424724066,1781089844000,-690.58,0.00028948,7]
[424724130,1781089844000,-691.87,0.00029074,30]
[424724132,1781089844000,-6075.0,0.00029086,2]
[424724129,1781089844000,-690.58,0.00029043,7]
[424724131,1781089844000,-690.58,0.00029074,30]
[424724133,1781089844000,-933.0,0.00029086,2]
[424724143,1781089844000,-3000.0,0.00029138,3]
[424724142,1781089844000,-691.87,0.00029138,7]
[424724144,1781089844000,-690.58,0.00029138,7]
[424724135,1781089844000,-690.58,0.00029106,2]
[424724134,1781089844000,-691.87,0.00029106,2]
[424724145,1781089844000,-691.87,0.00029169,30]
[424724141,1781089844000,-686.18,0.00029133,30]
[424724127,1781089844000,-691.87,0.00029043,7]
[424724136,1781089844000,-2281.34,0.00029132,30]
[424724137,1781089844000,-2282.4,0.00029132,30]
[424724138,1781089844000,-1098.29,0.00029133,30]
[424724140,1781089844000,-1100.81,0.00029133,30]
[424724147,1781089844000,-248.0,0.00029195,30]
[424724146,1781089844000,-690.58,0.00029169,30]
[424724148,1781089844000,-266.0,0.00029195,30]
[424724149,1781089844000,-220.0,0.00029195,30]
[424724150,1781089844000,-735.0,0.00029195,30]
[424724153,1781089844000,-4649.26,0.00029215,2]
[424724152,1781089844000,-690.58,0.00029201,2]
[424724155,1781089844000,-256.0,0.0002923,30]
[424724062,1781089844000,-690.58,0.00028916,2]
[424724139,1781089844000,-684.7,0.00029133,30]
[424724125,1781089844000,-690.58,0.00029011,2]
[424724151,1781089844000,-691.87,0.00029201,2]
[424724121,1781089844000,-1025.28781274,0.00029,2]
[424724123,1781089844000,-691.87,0.00029011,2]
[424724072,1781089844000,-1098.29,0.00028966,2]
[424724070,1781089844000,-2282.4,0.00028965,2]
[424724083,1781089844000,-167.3033954,0.00028971,2]
[424724064,1781089844000,-691.87,0.00028948,7]
[424724085,1781089844000,-691.87,0.00028979,30]
[424724076,1781089844000,-1100.81,0.00028966,2]
[424724081,1781089844000,-186.24909246,0.00028971,2]
[424724074,1781089844000,-684.7,0.00028966,2]
[424724087,1781089844000,-690.58,0.00028979,30]
[424724078,1781089844000,-686.18,0.00028966,2]
[424724091,1781089844000,-500.0,0.00029,2]
[424724089,1781089844000,-500.0,0.00029,2]
[424724068,1781089844000,-2281.34,0.00028965,2]
[424724097,1781089844000,-500.0,0.00029,2]
[424724117,1781089844000,-284.95203121,0.00029,30]
[424724115,1781089844000,-527.39395721,0.00029,2]
[424724119,1781089844000,-284.95203121,0.00029,7]
[424724113,1781089844000,-500.0,0.00029,2]
[424724093,1781089844000,-500.0,0.00029,2]
[424724109,1781089844000,-500.0,0.00029,2]
[424724111,1781089844000,-500.0,0.00029,2]
[424724107,1781089844000,-500.0,0.00029,2]
[424724101,1781089844000,-500.0,0.00029,2]
[424724105,1781089844000,-500.0,0.00029,2]
[424724099,1781089844000,-500.0,0.00029,2]
[424724095,1781089844000,-500.0,0.00029,2]
[424724103,1781089844000,-500.0,0.00029,2]
[424724193,1781089845000,-241.2633759,0.00029596,2]
[424724196,1781089845000,-288.48366379,0.00029596,2]
[424724204,1781089845000,-220.93954072,0.00029629,2]
[424724194,1781089845000,-529.46441058,0.00029596,2]
[424724211,1781089845000,-217.93422179,0.00029633,2]
[424724189,1781089845000,-253.04988814,0.00029596,2]
[424724190,1781089845000,-238.04654023,0.00029596,2]
[424724183,1781089845000,-230.67104731,0.00029596,2]
[424724192,1781089845000,-194.51230655,0.00029596,2]
[424724185,1781089845000,-205.58962839,0.00029596,2]
[424724191,1781089845000,-225.21297495,0.00029596,2]
[424724195,1781089845000,-409.69161841,0.00029596,2]
[424724197,1781089845000,-258.63624667,0.00029596,2]
[424724201,1781089845000,-194.18605571,0.00029629,2]
[424724202,1781089845000,-214.77983455,0.00029629,2]
[424724203,1781089845000,-230.75552074,0.00029629,2]
[424724200,1781089845000,-525.94004872,0.00029629,2]
[424724198,1781089845000,-187.00532554,0.00029596,2]
[424724207,1781089845000,-502.26598159,0.00029629,2]
[424724206,1781089845000,-576.28146883,0.00029629,2]
[424724205,1781089845000,-532.77491372,0.00029629,2]
[424724214,1781089845000,-216.37775023,0.00029633,2]
[424724209,1781089845000,-205.56677579,0.00029629,2]
[424724212,1781089845000,-185.40012574,0.00029633,2]
[424724187,1781089845000,-408.3811789,0.00029596,2]
[424724199,1781089845000,-259.49884754,0.00029629,2]
[424724186,1781089845000,-181.32982294,0.00029596,2]
[424724171,1781089845000,-2282.4,0.000293,7]
[424724182,1781089845000,-166.82082127,0.00029596,2]
[424724157,1781089845000,-702.0,0.0002923,30]
[424724156,1781089845000,-189.0,0.0002923,30]
[424724159,1781089845000,-218.0,0.0002923,30]
[424724169,1781089845000,-1100.81,0.000293,7]
[424724161,1781089845000,-293.0,0.0002923,30]
[424724162,1781089845000,-515.0,0.0002923,30]
[424724164,1781089845000,-691.88,0.00029232,7]
[424724158,1781089845000,-250.0,0.0002923,30]
[424724160,1781089845000,-731.0,0.0002923,30]
[424724163,1781089845000,-240.0,0.0002923,30]
[424724167,1781089845000,-1098.29,0.000293,7]
[424724166,1781089845000,-647.0,0.00029273,4]
[424724168,1781089845000,-684.7,0.000293,7]
[424724165,1781089845000,-690.71,0.00029232,7]
[424724181,1781089845000,-150.0,0.00029534,2]
[424724170,1781089845000,-2281.34,0.000293,7]
[424724175,1781089845000,-1358.0,0.00029423,2]
[424724174,1781089845000,-225.8,0.00029415,7]
[424724172,1781089845000,-686.18,0.000293,7]
[424724178,1781089845000,-1227.0,0.00029423,2]
[424724179,1781089845000,-165.08,0.000295,7]
[424724177,1781089845000,-1274.0,0.00029423,2]
[424724173,1781089845000,-200.0,0.00029319,2]
[424724176,1781089845000,-382.0,0.00029423,2]
[424724180,1781089845000,-353.92202595,0.000295,5]
[424724184,1781089845000,-240.79250091,0.00029596,2]
[424724216,1781089845000,-259.94548218,0.00029633,2]
[424724188,1781089845000,-293.22826481,0.00029596,2]
[424724213,1781089845000,-492.68817308,0.00029633,2]
[424724246,1781089845000,-305.10580536,0.000299,2]
[424724249,1781089845000,-305.10580536,0.000299,2]
[424724245,1781089845000,-305.10580536,0.000299,2]
[424724248,1781089845000,-305.10580536,0.000299,2]
[424724247,1781089845000,-305.10580536,0.000299,2]
[424724261,1781089845000,-305.10580536,0.000299,2]
[424724251,1781089845000,-305.10580536,0.000299,2]
[424724250,1781089845000,-305.10580536,0.000299,2]
[424724254,1781089845000,-305.10580536,0.000299,2]
[424724252,1781089845000,-305.10580536,0.000299,2]
[424724255,1781089845000,-305.10580536,0.000299,2]
[424724256,1781089845000,-305.10580536,0.000299,2]
[424724257,1781089845000,-305.10580536,0.000299,2]
[424724258,1781089845000,-305.10580536,0.000299,2]
[424724259,1781089845000,-305.10580536,0.000299,2]
[424724260,1781089845000,-305.10580536,0.000299,2]
[424724264,1781089845000,-227.0,0.0003,2]
[424724263,1781089845000,-221.0,0.0003,2]
[424724262,1781089845000,-150.0,0.0003,2]
[424724268,1781089845000,-194.52988158,0.0003,2]
[424724265,1781089845000,-397.0,0.0003,2]
[424724269,1781089845000,-200.0,0.0003,2]
[424724266,1781089845000,-1994.5246291,0.0003,2]
[424724267,1781089845000,-650.0,0.0003,2]
[424724210,1781089845000,-234.65695278,0.00029633,2]